bitfinex/quotes_ETHUSD_20251009
["timestamp","ask_amount","ask_price","bid_price","bid_amount"]
[1760019045297,0.00100276,4361.8,4361.2,6.863]
[1760019045519,13.137,4361.2,4360.6,2.385]
[1760019045664,13.137,4361.2,4360.7,9.1562098]
[1760019046065,13.137,4361.2,4361.1,2.29299947]
[1760019046265,13.137,4361.2,4361.1,9.61619947]
[1760019046498,13.137,4361.2,4360.3,0.2175]
[1760019046697,13.137,4361.2,4361.1,2.29299947]
[1760019046996,13.137,4361.2,4361.1,0.585]
[1760019047786,13.137,4361.2,4360.7,0.4602]
[1760019047986,0.48088319,4361.1,4360.8,0.935]
[1760019048286,0.48088319,4361.0,4360.8,1.3952]
[1760019048490,13.137,4361.2,4360.5,2.384]
[1760019048491,0.48124248,4360.9,4360.6,5.301]
[1760019048798,0.48124248,4360.8,4360.6,6.861]
[1760019049007,13.73500337,4361.2,4360.0,2.384]
[1760019049008,0.48124248,4360.7,4360.2,6.861]
[1760019049210,0.48124248,4360.6,4360.2,6.861]
[1760019049383,5.00369541,4361.1,4360.2,6.861]
[1760019049384,0.48124248,4360.5,4360.4,2.29336758]
[1760019049707,0.48124248,4360.5,4360.4,6.861]
[1760019051072,0.48124248,4360.5,4360.4,9.61456758]
[1760019051272,2.51800337,4361.1,4360.7,2.2931853]
[1760019051485,0.48149959,4361.0,4360.8,9.176081]
[1760019051679,0.48149959,4360.9,4360.8,9.15314943]
[1760019051875,0.48149959,4360.9,4360.8,6.86]
[1760019052076,0.48149959,4360.9,4359.8,0.4602]
[1760019052279,0.60184528,4360.7,4359.9,9.244]
[1760019052584,0.48149959,4360.6,4360.1,2.29351271]
[1760019052777,0.48153205,4360.5,4360.2,7.34313472]
[1760019052970,1.92,4361.1,4360.2,7.34313472]
[1760019052971,0.60191506,4360.8,4360.4,2.29331784]
[1760019053177,1.08344865,4360.7,4360.5,6.86]
[1760019053499,0.48153359,4360.6,4360.1,0.1144]
[1760019053674,0.48153359,4360.5,4360.1,2.40788453]
[1760019053881,0.48153359,4360.4,4360.2,6.859]
[1760019054090,0.48153359,4360.3,4360.2,6.859]
[1760019054295,0.48153359,4360.3,4360.2,9.61267277]
[1760019054469,0.1144,4360.8,4360.2,9.61267277]
[1760019054470,0.1144,4360.8,4360.5,2.29326923]
[1760019054671,0.48168022,4360.7,4360.6,6.88193262]
[1760019054998,0.48168022,4360.7,4360.6,6.859]
[1760019055187,0.83079232,4360.7,4360.6,6.859]
[1760019055391,0.83079232,4360.7,4360.1,0.1144]
[1760019055392,2.29335392,4360.5,4360.1,6.859]
[1760019055591,0.48168022,4360.4,4360.1,6.859]
[1760019055793,2.89554226,4360.5,4360.1,6.859]
[1760019055794,0.48168022,4360.3,4360.1,6.859]
[1760019055990,2.77515299,4360.2,4360.1,6.859]
[1760019056192,1.92,4360.1,4359.6,6.858]
[1760019056405,0.60229087,4359.9,4359.7,6.858]
[1760019056575,0.48168022,4359.8,4359.7,6.858]
[1760019056776,0.48168022,4359.8,4359.3,6.858]
[1760019056977,0.48168022,4359.7,4359.3,6.858]
[1760019057304,0.48088022,4359.6,4359.3,6.858]
[1760019057491,4.21388637,4359.5,4359.3,6.858]
[1760019057693,0.60229087,4359.5,4359.3,6.858]
[1760019057907,2.29395304,4359.3,4358.8,2.385]
[1760019058073,0.60229087,4359.5,4358.9,6.858]
[1760019058474,2.89613499,4359.5,4358.9,6.858]
[1760019058676,0.2896135,4359.4,4358.9,6.858]
[1760019059028,0.60229087,4359.5,4357.5,0.001]
[1760019059192,0.60229087,4359.3,4358.4,2.29439511]
[1760019059519,0.60229087,4359.4,4358.5,1.42024367]
[1760019059678,0.60229087,4359.4,4358.6,0.4383]
[1760019059914,0.60229087,4359.4,4358.7,2.31717515]
[1760019060115,0.60229087,4359.4,4359.0,2.29407625]
[1760019060319,0.60229087,4359.4,4359.1,6.858]
[1760019060556,0.74158779,4359.4,4359.3,2.29394627]
[1760019060754,0.74158779,4359.4,4359.1,6.858]
[1760019060755,0.60229087,4359.4,4359.1,6.858]
[1760019060931,1.92,4359.6,4358.2,2.29452526]
[1760019060932,2.62449087,4359.3,4358.2,2.29452526]
[1760019061129,2.18244909,4359.2,4358.3,3.145]
[1760019061332,2.29405152,4359.1,4358.1,0.4383]
[1760019061532,0.86473996,4359.2,4358.2,3.501]
[1760019061730,0.86473996,4359.2,4358.4,2.29439014]
[1760019061731,0.60229087,4359.1,4358.4,2.29439014]
[1760019061966,2.78473996,4359.2,4358.2,3.501]
[1760019062124,0.58693748,4359.1,4358.4,2.29439838]
[1760019062324,0.58693748,4359.1,4358.2,3.501]
[1760019062558,0.79067836,4359.5,4358.2,3.501]
[1760019062559,0.60229087,4359.6,4358.3,0.67934472]
[1760019062736,0.60229087,4359.9,4359.5,2.29384103]
[1760019062923,0.60229087,4359.9,4359.6,2.29378158]
[1760019063262,0.60229087,4360.0,4359.5,6.857]
[1760019063638,0.60229087,4360.1,4359.5,6.857]
[1760019063838,2.29377916,4359.7,4358.6,2.29427361]
[1760019064042,0.60229087,4360.0,4357.5,0.001]
[1760019064043,0.60229087,4360.0,4358.8,2.29420941]
[1760019064272,2.2934075,4360.4,4359.4,2.29385375]
[1760019064273,2.52229087,4360.1,4359.4,2.29385375]
[1760019064490,2.52229087,4360.1,4358.9,0.4383]
[1760019064491,0.60229087,4360.1,4359.5,9.15081356]
[1760019064777,27.0,4360.2,4359.5,7.2953]
[1760019064947,27.0,4360.2,4360.1,2.29352537]
[1760019065284,27.0,4360.2,4360.1,9.58782537]
[1760019065591,27.0,4360.2,4360.1,11.11076197]
[1760019065880,13.137,4361.2,4360.9,2.29307538]
[1760019066042,13.137,4361.2,4361.1,2.40739947]
[1760019066244,13.137,4361.2,4361.1,3.47929947]
[1760019066752,13.137,4361.2,4361.1,1.1863]
[1760019066953,13.137,4361.2,4361.1,1.69333047]
[1760019067182,13.137,4361.2,4361.1,3.35272994]
[1760019067486,0.002,4362.9,4361.7,2.29268404]
[1760019067487,0.1164,4362.9,4361.7,2.29268404]
[1760019067670,0.002,4362.9,4361.7,9.14768404]
[1760019067841,2.29405475,4362.9,4361.7,7.4077]
[1760019068178,2.29231012,4362.5,4361.7,0.1144]
[1760019068391,2.40662006,4362.6,4361.7,9.3544]
[1760019068559,0.1144,4362.6,4361.7,12.08538404]
[1760019068881,0.1144,4362.6,4361.7,9.3544]
[1760019068882,2.29236382,4362.4,4361.7,9.3544]
[1760019069285,1.92,4362.5,4361.7,0.1144]
[1760019069469,0.1144,4362.6,4361.7,6.9694]
[1760019069669,0.1144,4362.6,4361.7,7.4067]
[1760019070193,0.002,4362.9,4361.7,7.4067]
[1760019070194,0.002,4362.9,4361.7,10.90783201]
[1760019070781,0.002,4362.9,4361.7,10.88474797]
[1760019070948,2.29226727,4362.5,4361.7,10.88474797]
[1760019071161,2.29222968,4362.6,4361.7,8.49974797]
[1760019071487,2.29405902,4362.9,4361.7,13.17743201]
[1760019071690,0.002,4362.9,4361.7,10.88474797]
[1760019072189,0.002,4362.9,4361.7,13.17743201]
[1760019072910,0.002,4362.9,4361.7,13.81103201]
[1760019073058,0.002,4362.9,4362.2,0.6336]
[1760019073258,0.002,4362.9,4362.8,2.51020598]
[1760019073460,0.002,4362.9,4362.8,11.76912703]
[1760019073673,0.002,4362.9,4362.8,12.18450598]
[1760019074261,0.002,4362.9,4362.8,9.8924]
[1760019074661,0.002,4362.9,4362.8,12.18450598]
[1760019074861,0.002,4362.9,4362.8,22.93995658]
[1760019075589,0.002,4362.9,4362.8,23.57355658]
[1760019076164,0.002,4362.9,4362.8,25.49355658]
[1760019077293,0.002,4363.4,4363.3,2.92544332]
[1760019077604,0.002,4363.4,4363.3,9.77344332]
[1760019077778,0.002,4363.4,4363.3,11.41828249]
[1760019078564,0.002,4363.4,4363.3,1.64483917]
[1760019078794,0.002,4363.4,4363.3,16.44781843]
[1760019079004,0.002,4363.4,4363.3,18.71674332]
[1760019080288,0.002,4363.4,4363.3,3.36374332]
[1760019080495,0.002,4363.4,4363.3,2.73014332]
[1760019080746,0.002,4363.4,4363.3,2.9367]
[1760019080895,0.002,4363.4,4363.3,12.09646175]
[1760019081237,0.002,4363.4,4363.3,14.32531377]
[1760019081436,0.002,4363.4,4363.3,0.5527]
[1760019081623,0.002,4363.4,4363.3,2.84454332]
[1760019081823,0.0012,4363.4,4363.3,5.6167]
[1760019082127,0.0012,4363.4,4363.3,9.1277]
[1760019082297,0.0012,4363.4,4363.3,11.41954332]
[1760019082497,0.0012,4363.4,4363.3,13.67131377]
[1760019082932,0.0012,4363.4,4363.3,14.30491377]
[1760019084697,0.0012,4363.4,4363.3,16.22491377]
[1760019086033,0.0012,4363.4,4363.3,7.64991377]
[1760019086251,0.0012,4363.4,4363.3,33.69014332]
[1760019089021,0.0012,4363.4,4363.3,31.30314332]
[1760019089241,0.0012,4363.4,4363.3,33.68614332]
[1760019091070,0.2176,4367.4,4365.6,2.29063588]
[1760019091071,2.40460571,4366.5,4365.6,2.29063588]
[1760019091230,0.1144,4366.5,4365.7,9.71460583]
[1760019091426,0.47986766,4367.5,4365.8,2.8537]
[1760019091630,0.2164,4367.8,4365.8,2.8537]
[1760019091631,0.1144,4367.2,4366.4,0.1144]
[1760019091861,0.1144,4367.2,4366.5,6.048]
[1760019092163,0.2164,4367.8,4366.6,6.837]
[1760019092164,1.92,4367.0,4366.6,6.837]
[1760019092457,0.1013,4367.7,4366.7,6.85990058]
[1760019092655,0.1013,4367.7,4366.8,6.836]
[1760019092656,2.40428904,4367.1,4366.8,6.836]
[1760019092861,2.28990153,4367.0,4366.9,6.836]
[1760019093368,4.31120153,4367.0,4366.9,6.836]
[1760019093767,2.0213,4367.0,4365.2,0.237]
[1760019093965,0.1144,4366.4,4365.7,0.1144]
[1760019094179,0.1144,4366.4,4365.8,0.456]
[1760019094352,0.1144,4366.4,4365.9,9.218]
[1760019094676,0.1144,4366.4,4366.0,0.49360426]
[1760019094980,0.1144,4366.4,4366.0,0.02290426]
[1760019095480,2.29017661,4366.5,4366.0,0.02290426]
[1760019095481,2.29009462,4366.7,4366.0,0.1144]
[1760019095682,2.29012575,4366.6,4366.0,0.1144]
[1760019095982,0.1144,4366.4,4366.1,6.834]
[1760019096144,0.1144,4366.4,4366.0,2.382]
[1760019096145,0.1013,4366.3,4365.0,0.237]
[1760019096347,0.1013,4366.3,4365.1,9.23790898]
[1760019096554,0.95098039,4366.6,4365.1,9.6857]
[1760019096781,0.33423291,4366.5,4365.2,2.29083643]
[1760019097082,1.92,4366.8,4365.3,0.49360793]
[1760019097381,4.20996196,4366.9,4366.1,2.29037181]
[1760019097582,0.48153089,4366.8,4366.2,6.749]
[1760019097788,0.48153089,4366.9,4366.2,6.749]
[1760019097995,0.48153089,4367.0,4366.0,0.4707]
[1760019098278,0.48153089,4367.0,4364.8,1.92]
[1760019098279,2.29012095,4366.6,4365.6,0.4707]
[1760019098583,0.1013,4366.9,4365.1,2.76159826]
[1760019098785,2.29031551,4366.3,4365.7,2.382]
[1760019098984,0.27226293,4367.6,4365.8,2.1559053]
[1760019099297,2.28998756,4366.9,4365.8,2.6266053]
[1760019099451,2.28998756,4366.9,4365.9,2.29042959]
[1760019099780,1.24048683,4366.9,4366.0,6.831]
[1760019099956,2.29006292,4366.7,4366.0,6.831]
[1760019100157,2.29023278,4366.4,4366.0,6.831]
[1760019100466,2.2903185,4366.3,4366.0,6.831]
[1760019100681,2.29021989,4366.4,4366.0,6.831]
[1760019100974,2.29016767,4366.5,4366.0,6.831]
[1760019101177,0.48209394,4366.5,4366.1,0.02290373]
[1760019101386,0.48209394,4366.7,4366.2,0.4707]
[1760019101590,1.92,4366.6,4366.0,6.831]
[1760019101757,0.47934758,4366.5,4365.5,0.4707]
[1760019101958,0.58339394,4366.4,4365.5,0.472]
[1760019102184,2.29057503,4365.8,4365.5,0.472]
[1760019102393,2.29053094,4365.8,4363.6,0.4707]
[1760019102561,2.29053094,4365.8,4363.3,0.001]
[1760019102562,1.92,4365.5,4364.6,2.29111682]
[1760019102760,1.08409213,4365.4,4364.7,5.508]
[1760019102960,2.29086227,4365.2,4364.8,6.76191055]
[1760019103190,2.29103583,4364.9,4364.3,0.4707]
[1760019103393,0.22910358,4364.9,4363.8,0.4707]
[1760019103693,1.92,4365.0,4363.9,3.2917]
[1760019103858,0.60199819,4365.1,4364.0,2.73047571]
[1760019104060,0.60199819,4365.1,4364.0,0.439]
[1760019104255,0.60199819,4365.0,4364.1,0.237]
[1760019104456,0.60199819,4364.9,4363.9,2.382]
[1760019104685,2.29133745,4364.3,4364.0,4.143]
[1760019105006,0.1044,4365.0,4364.0,6.828]
[1760019105007,0.60199819,4364.7,4364.0,6.828]
[1760019105398,2.29125886,4364.5,4364.0,6.828]
[1760019105688,0.60199819,4364.7,4364.1,6.828]
[1760019106065,2.29132059,4364.3,4364.2,6.828]
[1760019106267,2.29132059,4364.3,4363.7,0.1144]
[1760019106268,0.1044,4364.3,4363.7,0.1144]
[1760019106462,0.1144,4363.9,4363.7,1.474]
[1760019106996,2.29146746,4364.1,4363.7,1.474]
[1760019107162,2.29146746,4364.1,4363.3,0.001]
[1760019107163,2.29174406,4363.5,4363.3,0.001]
[1760019107363,0.91629819,4363.8,4363.3,0.001]
[1760019107562,2.3971908,4363.4,4363.3,0.001]
[1760019107957,0.1054,4363.4,4363.3,0.001]
[1760019108156,0.60199819,4363.7,4363.3,0.001]
[1760019108804,2.39811479,4363.6,4363.3,0.001]
[1760019109007,0.1064,4363.6,4363.3,0.001]
[1760019109180,4.21163594,4363.7,4363.3,0.001]
[1760019109498,1.92,4363.7,4363.3,0.001]
[1760019109704,0.60199819,4363.9,4363.4,6.827]
[1760019109874,0.60199819,4364.3,4363.5,2.78425258]
[1760019110070,0.79067836,4364.5,4363.5,2.78425258]
[1760019110071,0.60199819,4364.5,4364.0,2.29145942]
[1760019110288,0.60199819,4364.6,4364.1,7.31951423]
[1760019110483,0.60199819,4364.9,4364.2,4.67437069]
[1760019110686,0.60199819,4364.9,4364.3,0.02291318]
[1760019110891,0.60199819,4365.1,4364.4,2.29121754]
[1760019111086,0.60199819,4365.2,4364.2,2.383]
[1760019111269,0.60199819,4365.3,4364.9,2.29096254]
[1760019111473,0.60199819,4365.6,4365.0,9.2319095]
[1760019111675,0.60199819,4365.6,4365.0,9.209]
[1760019111913,1.31516878,4366.2,4365.0,9.209]
[1760019111914,0.60199819,4365.7,4365.4,2.29073165]
[1760019112107,0.60199819,4365.7,4365.0,9.209]
[1760019112108,0.60199819,4366.0,4365.5,0.02290688]
[1760019112410,0.60199819,4366.1,4365.6,6.826]
[1760019112581,0.60199819,4366.1,4365.7,6.826]
[1760019112984,0.60199819,4366.1,4365.8,6.825]
[1760019113384,0.60199819,4366.2,4365.8,6.825]
[1760019113598,0.60199819,4366.2,4365.6,2.383]
[1760019113599,2.29058604,4365.7,4364.3,1.1732108]
[1760019113786,2.29062968,4365.7,4364.4,13.68]
[1760019113988,2.29062968,4365.7,4364.9,2.29099627]
[1760019114195,2.29053094,4365.8,4365.0,9.208]
[1760019114404,2.29047848,4365.9,4365.0,9.208]
[1760019114611,1.92,4365.9,4365.0,9.208]
[1760019114909,1.92,4365.9,4364.0,2.29142634]
[1760019114910,0.48306248,4365.9,4365.1,9.6766]
[1760019115203,2.29058858,4365.7,4364.8,2.29101751]
[1760019115398,0.48306248,4365.7,4364.9,5.278]
[1760019115594,0.48306248,4365.7,4363.7,4.21159719]
[1760019115595,0.48306248,4365.6,4363.4,0.6828]
[1760019115917,0.6336,4365.7,4363.3,0.001]
[1760019115918,1.23559819,4364.8,4363.3,0.001]
[1760019116078,2.29151614,4364.0,4363.5,0.676]
[1760019116302,0.2239,4364.1,4363.3,0.001]
[1760019116610,2.2915284,4363.9,4363.4,0.342]
[1760019117013,0.1144,4363.8,4363.5,6.823]
[1760019117199,0.60199819,4364.5,4363.5,6.823]
[1760019117200,0.48306248,4364.4,4363.6,0.49251685]
[1760019117534,0.1144,4364.2,4363.7,0.02291633]
[1760019117735,0.1144,4364.2,4363.5,9.22910535]
[1760019117736,0.1144,4364.2,4363.5,0.1144]
[1760019117940,2.40306248,4364.6,4363.3,0.001]
[1760019117941,1.92,4364.6,4363.3,0.001]
[1760019118243,0.1144,4363.9,4363.6,0.132]
[1760019118405,0.1144,4363.9,4363.5,0.392]
[1760019118406,2.29161567,4363.8,4363.5,0.392]
[1760019118737,2.29161567,4363.8,4363.3,2.384]
[1760019118738,0.1144,4363.5,4363.3,3.605]
[1760019119615,2.2917908,4363.4,4363.3,0.001]
[1760019120312,0.1144,4363.5,4363.3,0.001]
[1760019120704,0.93326585,4364.5,4363.4,0.4678]
[1760019120901,2.29146543,4364.1,4363.4,0.1144]
[1760019121241,2.29155674,4363.9,4363.5,0.752]
[1760019121401,0.1144,4363.7,4363.3,3.816]
[1760019121607,0.1144,4363.7,4363.4,0.4678]
[1760019121801,0.79067836,4365.2,4363.3,4.47025843]
[1760019121802,0.1144,4364.5,4363.6,0.1144]
[1760019122041,0.1144,4364.5,4364.1,2.29138804]
[1760019122205,0.1144,4364.9,4364.2,7.5173]
[1760019122405,0.48246517,4365.5,4364.2,7.5173]
[1760019122613,0.1144,4365.3,4364.5,2.29119078]
[1760019122811,0.1144,4365.3,4364.4,0.1144]
[1760019123109,0.1144,4365.3,4364.5,9.203]
[1760019123110,2.29108287,4364.8,4364.5,9.203]
[1760019123308,2.29108287,4364.8,4363.6,0.4678]
[1760019123309,2.39252195,4364.7,4364.3,6.82]
[1760019123542,0.1144,4364.5,4363.8,0.1144]
[1760019123703,0.1144,4364.5,4363.9,9.203]
[1760019123924,0.1144,4364.5,4364.0,9.203]
[1760019124124,0.1144,4364.5,4364.0,11.49447284]
[1760019124429,0.1144,4364.5,4364.1,0.4678]
[1760019124648,0.1144,4364.5,4364.2,0.9899937]
[1760019124856,0.1144,4364.5,4364.0,9.203]
[1760019125157,0.1144,4364.5,4364.1,9.202]
[1760019125746,0.1144,4364.5,4364.2,0.0229137]
[1760019125946,1.92,4365.4,4364.3,0.4678]
[1760019126165,0.1144,4365.2,4364.5,2.29121319]
[1760019126322,0.1144,4365.2,4364.6,2.29115134]
[1760019126528,0.1144,4365.2,4364.4,0.1144]
[1760019126529,0.1144,4365.2,4364.7,9.10910539]
[1760019126836,0.1144,4365.2,4364.8,2.29105571]
[1760019127033,0.1144,4365.2,4364.7,9.10909452]
[1760019127924,2.29021619,4366.4,4364.8,0.4678]
[1760019128122,0.1144,4366.0,4365.1,0.1144]
[1760019128343,0.1144,4366.0,4365.2,0.49070845]
[1760019128554,0.1144,4366.0,4365.3,6.817]
[1760019128960,0.1144,4366.0,4362.9,0.001]
[1760019128961,0.2166,4365.9,4362.9,0.001]
[1760019129125,1.92,4365.6,4364.1,2.75921868]
[1760019129323,2.0237,4365.7,4364.5,2.29120181]
[1760019129555,2.29063588,4365.6,4364.4,2.29125495]
[1760019129767,2.29063588,4365.6,4364.5,6.816]
[1760019129966,2.29081948,4365.3,4364.6,0.001]
[1760019130171,0.1037,4365.5,4364.6,0.001]
[1760019130321,2.29094282,4365.1,4364.6,0.001]
[1760019130525,2.29104702,4364.9,4364.7,6.816]
[1760019130765,2.29089826,4365.1,4364.7,6.816]
[1760019130970,2.29105571,4364.8,4364.7,6.816]
[1760019131282,0.1037,4365.1,4364.6,0.001]
[1760019131472,2.29099648,4365.0,4364.6,6.816]
[1760019131657,1.92,4365.2,4364.6,6.816]
[1760019131865,1.92,4365.1,4364.6,6.816]
[1760019132562,4.21094191,4365.1,4364.6,6.816]
[1760019132986,2.29063588,4365.6,4364.7,0.49071108]
[1760019133137,0.48267101,4365.6,4364.7,0.49071108]
[1760019133337,0.29577419,4365.8,4364.7,0.49071108]
[1760019133587,2.29241732,4366.1,4365.2,2.29080568]
[1760019133748,2.29238156,4366.1,4365.3,11.51069689]
[1760019133954,2.29238156,4366.1,4365.3,11.48778896]
[1760019134180,0.002,4366.1,4364.6,0.001]
[1760019134338,2.29095753,4365.0,4364.6,0.001]
[1760019134538,0.45559098,4366.1,4364.6,0.001]
[1760019134539,2.29068835,4365.5,4364.7,0.245]
[1760019134866,2.29089627,4365.2,4364.8,5.818]
[1760019135174,0.26109883,4365.4,4364.8,5.818]
[1760019135374,2.29079211,4365.4,4364.8,5.818]
[1760019135539,3.15559819,4366.4,4364.6,0.001]
[1760019135740,2.2908867,4365.2,4364.7,2.538]
[1760019136079,2.29095125,4365.0,4364.7,2.538]
[1760019136250,2.29100645,4364.9,4364.6,0.001]
[1760019136455,2.29100629,4364.9,4364.7,0.397]
[1760019136650,1.92,4365.1,4364.7,0.397]
[1760019136850,1.92,4365.9,4364.8,0.49071055]
[1760019137051,1.92,4365.8,4364.8,0.49071055]
[1760019137362,2.29058341,4365.7,4364.8,0.4678]
[1760019137678,2.29077903,4365.4,4364.9,6.217]
[1760019137895,0.099,4365.3,4364.6,0.001]
[1760019138240,2.29106244,4364.8,4364.6,0.521]
[1760019138571,2.2911082,4364.7,4364.6,0.001]
[1760019138740,2.29089826,4365.1,4364.6,0.001]
[1760019138950,2.4055082,4364.7,4364.6,0.001]
[1760019139461,0.1144,4364.7,4364.6,0.001]
[1760019139667,0.3204,4365.5,4364.6,0.001]
[1760019139668,0.1144,4364.9,4364.6,0.001]
[1760019140086,0.1144,4364.9,4364.7,0.4678]
[1760019140390,1.92,4365.8,4364.7,0.02291108]
[1760019140595,0.1144,4365.5,4364.9,2.29100323]
[1760019140791,0.002,4366.1,4365.0,12.4057095]
[1760019141007,0.002,4366.1,4366.0,2.29042601]
[1760019141159,0.002,4366.1,4366.0,11.50533027]
[1760019141354,0.002,4366.1,4366.0,11.95022601]
[1760019141592,0.002,4366.1,4363.1,2.29192182]
[1760019141771,0.002,4366.1,4365.3,0.4678]
[1760019141972,0.002,4366.1,4365.4,0.0229074]
[1760019142305,2.29042671,4366.0,4365.5,9.191]
[1760019142508,0.54744267,4365.9,4365.2,2.383]
[1760019142658,0.002,4366.1,4365.3,6.83090793]
[1760019142978,0.002,4366.1,4365.5,2.29064495]
[1760019143286,0.002,4366.1,4365.6,2.29063185]
[1760019143479,0.002,4366.1,4365.5,2.29068179]
[1760019143653,0.002,4366.1,4365.5,2.29064065]
[1760019145095,0.002,4366.1,4365.6,0.02290635]
[1760019145456,0.002,4366.1,4365.6,0.49070635]
[1760019145675,0.002,4366.1,4365.3,6.808]
[1760019145883,0.002,4366.1,4365.5,2.29068835]
[1760019146066,0.002,4366.1,4365.7,2.29053106]
[1760019146260,0.002,4366.1,4365.8,2.75830439]
[1760019146486,0.002,4366.1,4365.9,6.805]
[1760019146810,0.002,4366.1,4366.0,2.382]
[1760019146987,0.002,4366.1,4366.0,6.35766841]
[1760019147185,0.002,4366.1,4366.0,6.33476415]
[1760019148714,0.002,4366.1,4366.0,16.49836415]
[1760019148912,0.002,4366.1,4366.0,18.41836415]
[1760019149114,0.0012,4366.1,4366.0,18.41836415]
[1760019149311,1e-08,4366.6,4366.5,2.92376374]
[1760019149477,1e-08,4366.6,4366.5,19.80106542]
[1760019149678,1e-08,4366.6,4366.5,20.24296379]
[1760019150676,1e-08,4366.6,4366.5,20.35736379]
[1760019151114,1e-08,4366.6,4366.5,22.27736379]
[1760019151312,1e-08,4366.6,4366.5,34.18636379]
[1760019154098,1e-08,4366.6,4366.5,5.94436379]
[1760019154304,1e-08,4366.6,4366.5,34.18136379]
[1760019154704,1e-08,4366.6,4366.5,5.94436379]
[1760019154906,1e-08,4366.6,4366.5,34.18036379]
[1760019155238,1e-08,4366.6,4366.5,5.31076379]
[1760019155407,1e-08,4366.6,4366.5,33.54676379]
[1760019155609,1e-08,4366.6,4366.5,12.10876379]
[1760019155811,1e-08,4366.6,4366.5,5.31076379]
[1760019156029,1e-08,4366.6,4366.5,24.01576379]
[1760019156237,0.60199819,4370.1,4366.6,11.44178]
[1760019156419,1.08431954,4371.2,4369.2,0.6336]
[1760019156743,2.28780599,4371.0,4369.3,0.4648]
[1760019156928,2.24145453,4371.9,4369.4,1.776]
[1760019156929,2.28809385,4370.5,4369.4,1.776]
[1760019157104,0.22880939,4370.4,4369.6,2.28853812]
[1760019157304,0.1014,4370.9,4369.7,0.02288486]
[1760019157542,2.28832245,4370.1,4369.8,6.796]
[1760019157748,0.1014,4370.9,4369.4,0.4648]
[1760019157928,2.28838005,4370.0,4369.5,9.177]
[1760019158102,0.1014,4371.1,4369.6,2.81]
[1760019158302,2.28796302,4370.7,4369.7,6.796]
[1760019158558,0.1014,4370.6,4368.9,0.4648]
[1760019158844,2.28828563,4370.1,4369.0,21.01373691]
[1760019159141,2.28827513,4370.2,4369.4,2.2886078]
[1760019159340,2.28827513,4370.2,4369.0,18.702]
[1760019159341,1.92,4371.1,4369.6,2.28849857]
[1760019159559,2.38906183,4371.3,4369.5,7.48766078]
[1760019159846,2.2879735,4370.7,4369.6,2.31141061]
[1760019160006,2.2879735,4370.7,4369.9,2.28837497]
[1760019160206,2.28791142,4370.8,4370.0,9.175]
[1760019160542,2.28797843,4370.7,4370.1,0.02288277]
[1760019160725,0.43090392,4371.2,4370.2,0.4648]
[1760019160926,2.28812729,4370.4,4369.5,0.22886078]
[1760019161126,0.1014,4370.8,4369.6,12.189]
[1760019161326,2.38936142,4370.8,4369.7,9.174]
[1760019161547,2.2884501,4369.8,4369.2,9.525]
[1760019161750,2.28853696,4369.7,4369.0,0.4648]
[1760019161950,2.28853696,4369.7,4369.1,18.698]
[1760019162352,0.6336,4370.6,4368.4,0.4648]
[1760019162670,2.28875182,4369.2,4368.5,2.607]
[1760019162855,2.28885926,4369.0,4368.4,10.2126]
[1760019163176,2.28885926,4369.0,4367.6,1.92]
[1760019163177,2.28911058,4368.6,4368.5,9.172]
[1760019163358,2.0218,4369.2,4366.5,4.80840005]
[1760019163664,0.1018,4368.6,4367.1,2.2898237]
[1760019163851,1.92,4368.7,4366.5,0.52140005]
[1760019163852,0.1018,4368.5,4367.2,2.341]
[1760019164055,2.28964038,4367.5,4367.3,2.341]
[1760019164257,0.3161,4368.0,4366.2,0.4648]
[1760019164437,2.28996444,4366.9,4366.5,2.643]
[1760019164641,0.2193,4367.3,4365.7,0.4638]
[1760019164837,0.56918928,4367.3,4366.3,2.381]
[1760019165163,2.29016374,4366.5,4366.4,3.809]
[1760019165368,0.099,4366.5,4364.9,2.2909965]
[1760019165576,1.92,4367.2,4364.9,2.2909965]
[1760019165577,1.92,4366.6,4365.0,2.381]
[1760019165873,1.92,4366.6,4365.0,4.628]
[1760019165874,2.2906341,4365.7,4365.0,4.628]
[1760019166027,2.29026864,4366.3,4365.1,9.17]
[1760019166225,0.1144,4365.4,4365.2,6.789]
[1760019166452,1.92,4365.3,4364.7,0.1144]
[1760019166788,2.29084863,4365.2,4364.8,5.386]
[1760019166979,0.1144,4365.4,4364.8,5.386]
[1760019167179,0.1144,4365.6,4364.9,0.60111003]
[1760019167352,0.1144,4365.6,4364.9,0.1144]
[1760019167676,0.1144,4365.6,4365.0,2.3138502]
[1760019167845,0.1144,4365.6,4365.1,2.29088577]
[1760019168176,2.29035056,4366.2,4365.2,0.02290845]
[1760019168341,0.1144,4365.9,4365.3,2.75458616]
[1760019168544,0.1144,4365.9,4365.4,5.2049074]
[1760019168767,0.1144,4365.9,4365.7,2.29057389]
[1760019168994,2.29002012,4366.8,4365.8,2.4039053]
[1760019169198,0.1002,4367.1,4365.8,2.4039053]
[1760019169199,0.1144,4366.2,4365.8,2.4039053]
[1760019169661,0.1144,4366.2,4365.5,0.1154]
[1760019169858,2.40491778,4365.9,4365.6,0.143]
[1760019170082,0.1144,4365.9,4365.6,2.524]
[1760019170597,0.1144,4365.9,4365.6,2.9878]
[1760019170793,0.1144,4365.9,4365.6,3.01070635]
[1760019171111,0.1144,4365.9,4365.6,2.524]
[1760019171570,0.1144,4366.4,4365.7,2.89167641]
[1760019171777,0.1144,4366.4,4365.7,0.5782]
[1760019172102,0.69931078,4367.7,4365.8,0.0229053]
[1760019172274,0.1144,4367.0,4366.6,2.29008461]
[1760019172477,0.1144,4367.0,4366.7,3.41670058]
[1760019172670,2.28966295,4367.5,4366.7,3.41670058]